fUSD/lending_fUSD_20250708
["ID","MTS","AMOUNT","RATE_DAILY","PERIOD"]
[370301859,1751941899188,-774.26,0.00032328,7]
[370301860,1751941899198,-521.58,0.00032328,7]
[370301861,1751941899208,-460.0,0.00032328,7]
[370301862,1751941899218,-460.0,0.00032328,7]
[370301863,1751941899229,-644.93,0.00032328,7]
[370301864,1751941899240,-2702.37076052,0.00032328,7]
[370301865,1751941899265,-500.0,0.00032328,7]
[370301866,1751941899286,-460.0,0.00030958,7]
[370301867,1751941899298,-460.0,0.00031941,7]
[370301868,1751941899309,-19.72923948,0.00032328,7]
[370301869,1751941899320,-460.0,0.00032328,7]
[370301870,1751941899330,-460.0,0.00032328,7]
[370301871,1751941899340,-134.6073682,0.00032328,7]
[370301872,1751941899723,-471.6236873,0.00030136,7]
[370301873,1751941899732,-460.0,0.00030136,7]
[370301874,1751941899742,-460.0,0.00030136,7]
[370301875,1751941899752,-460.0,0.00030136,7]
[370301876,1751941899762,-493.43013046,0.00030297,7]
[370301877,1751941899772,-107.66328571,0.00030297,7]
[370301878,1751941899784,-382.33671429,0.00030297,7]
[370301879,1751941899794,-460.0,0.00031232,7]
[370301880,1751941899804,-460.0,0.00031232,7]
[370301881,1751941899814,-460.0,0.00031506,7]
[370301882,1751941899824,-127.66328572,0.00031506,7]
[370301883,1751941899836,-296.86671428,0.00031506,7]
[370301884,1751941899850,-272.69302681,0.0003178,7]
[370301885,1751941899859,-460.0,0.00032215,7]
[370301886,1751941899869,-20.44025891,0.00032328,7]
[370301887,1751941899889,-460.0,0.0003041,7]
[370301888,1751941899899,-304.95237289,0.00032328,7]
[370301889,1751941899909,-410.66081613,0.00032328,7]
[370301890,1751941900384,-379.9212741,0.00029263,2]
[370301891,1751941900402,-180.30214883,0.00029263,2]
[370301892,1751941900411,-460.0,0.00030136,7]
[370301893,1751941900421,-460.0,0.00030136,7]
[370301894,1751941900430,-502.47,0.00030136,7]
[370301895,1751941900439,-460.0,0.00030136,7]
[370301896,1751941900448,-460.0,0.00030136,7]
[370301897,1751941900457,-510.52612455,0.00030136,7]
[370301898,1751941900467,-460.0,0.00030136,7]
[370301899,1751941900477,-460.0,0.00030297,7]
[370301900,1751941900487,-460.0,0.00030297,7]
[370301901,1751941900497,-460.0,0.00030297,7]
[370301902,1751941900506,-460.0,0.0003041,7]
[370301903,1751941900516,-552.3886134,0.0003041,7]
[370301904,1751941900527,-155.77,0.0003041,7]
[370301905,1751941900539,-554.31595161,0.0003041,7]
[370301906,1751941900547,-490.0,0.0003041,7]
[370301907,1751941900557,-460.0,0.0003041,7]
[370301908,1751941900568,-551.34202442,0.00030571,7]
[370301909,1751941900577,-460.0,0.00030684,7]
[370301910,1751941900587,-460.0,0.00030684,7]
[370301911,1751941900598,-460.0,0.00030958,7]
[370301912,1751941900608,-460.0,0.00030958,7]
[370301913,1751941900617,-460.0,0.00031232,7]
[370301914,1751941900627,-460.0,0.00031232,7]
[370301915,1751941900636,-460.0,0.00031506,7]
[370301916,1751941900645,-460.0,0.00031506,7]
[370301917,1751941900654,-380.7,0.0003178,7]
[370301918,1751941900664,-352.84129684,0.0003178,7]
[370301919,1751941900675,-107.15870316,0.0003178,7]
[370301920,1751941900685,-331.21,0.00032054,7]
[370301921,1751941900695,-49.33918387,0.00032328,7]
[370301922,1751941900704,-460.0,0.00032328,7]
[370301923,1751941900715,-686.42,0.00032328,7]
[370301924,1751941900725,-636.64,0.00032328,7]
[370301925,1751941900736,-197.84,0.00032328,7]
[370301926,1751941900745,-1580.2,0.00032328,7]
[370301927,1751941900755,-460.0,0.00032328,7]
[370301928,1751941900765,-650.64,0.00032328,7]
[370301929,1751941900774,-460.0,0.00032328,7]
[370301930,1751941900784,-664.74,0.00032328,7]
[370301931,1751941900793,-1231.87,0.00032328,7]
[370301932,1751941900803,-417.67167123,0.00032328,7]
[370301933,1751941900815,-42.32832877,0.00032328,7]
[370301934,1751941900825,-460.0,0.00032328,7]
[370301935,1751941900834,-661.7,0.00032328,7]
[370301936,1751941900844,-460.0,0.00032328,7]
[370301937,1751941900856,-1589.43,0.00032328,7]
[370301938,1751941900865,-368.52050883,0.00032328,7]
[370301939,1751941900877,-143.51949117,0.00032328,7]
[370301940,1751941900886,-300.0,0.00032328,2]
[370301941,1751941900896,-460.0,0.00032328,7]
[370301942,1751941900905,-460.0,0.00032328,7]
[370301943,1751941900914,-287.2643215,0.00032328,7]
[370301944,1751941900938,-460.0,0.00030297,7]
[370301945,1751941900947,-460.0,0.00030684,7]
[370301946,1751941900958,-208.6856785,0.00032328,7]
[370301947,1751941900967,-460.0,0.00032328,7]
[370301948,1751941900977,-460.0,0.00032328,7]
[370301949,1751941900986,-760.43,0.00032328,7]
[370301950,1751941900996,-489.62,0.00032328,7]
[370301951,1751941901005,-545.56,0.00032328,7]
[370301952,1751941901015,-460.0,0.00032328,7]
[370301953,1751941901025,-460.0,0.00032328,7]
[370301954,1751941901035,-154.9043215,0.00032328,7]
[370301955,1751941962359,182.3,0.00013699,2]
[370301956,1751942096773,232.0,0.00030137,120]
[370301957,1751942286198,151.0,0.00029,120]
[370301958,1751942631673,2000.0,0.0002,7]
[370301959,1751942690232,155.14,0.00028634,120]
[370302042,1751942917552,182.3,0.00013699,2]
[370302050,1751943038016,-454.92529219,0.0002,7]
[370302051,1751943038028,-629.17442911,0.0002,7]
[370302052,1751943038040,-1118.12169975,0.0002,7]
[370302054,1751943038124,-1875.77857895,0.0002,7]
[370302055,1751943038134,-186.15,0.0002296,2]
[370302056,1751943038144,-192.33,0.00026813,2]
[370302057,1751943038154,-200.0,0.00028545,2]
[370302058,1751943038164,-1000.0,0.00028632,2]
[370302059,1751943038174,-185.0,0.00028688,2]
[370302060,1751943038184,-1200.0,0.00028688,2]
[370302061,1751943038194,-151.0,0.00028689,2]
[370302062,1751943038204,-151.0,0.00028689,2]
[370302063,1751943038214,-151.0,0.00028689,2]
[370302064,1751943038223,-151.0,0.00028689,2]
[370302065,1751943038232,-151.0,0.00028689,2]
[370302066,1751943038242,-151.0,0.00028689,2]
[370302067,1751943038251,-151.0,0.00028689,2]
[370302068,1751943038260,-151.0,0.00028689,2]
[370302069,1751943038269,-23.08967825,0.00028689,2]
[370302070,1751943038289,-127.91032175,0.00028689,2]
[370302071,1751943038299,-151.0,0.00028689,2]
[370302072,1751943038309,-151.0,0.00028689,2]
[370302073,1751943038319,-166.87,0.00028698,2]
[370302074,1751943038328,-1200.0,0.00028704,2]
[370302075,1751943038338,-666.0,0.00028704,2]
[370302076,1751943038347,-4004.56117562,0.00028706,2]
[370302077,1751943038359,-1222.56000018,0.00028706,2]
[370302078,1751943038387,-277.595,0.00028706,2]
[370302079,1751943038402,-18395.2838242,0.00028706,2]
[370302080,1751943038411,-250.0,0.00028706,2]
[370302081,1751943038421,-862.89,0.00028716,2]
[370302082,1751943038430,-187.32,0.00028769,2]
[370302083,1751943038440,-150.0,0.00028828,2]
[370302084,1751943038449,-4378.95,0.00028829,2]
[370302085,1751943038459,-837.09214054,0.00029036,2]
[370302086,1751943038469,-421.39,0.00029381,2]
[370302087,1751943038479,-421.39,0.00029397,2]
[370302088,1751943038488,-991.09,0.000294,2]
[370302089,1751943038498,-421.39,0.00029412,2]
[370302090,1751943038508,-421.39,0.00029427,2]
[370302091,1751943038518,-421.39,0.00029443,2]
[370302092,1751943038527,-321.99,0.00029447,2]
[370302093,1751943038537,-421.39,0.00029458,2]
[370302094,1751943038547,-421.39,0.00029474,2]
[370302095,1751943038558,-421.39,0.00029489,2]
[370302096,1751943038568,-250.0,0.00029494,2]
[370302097,1751943038579,-421.39,0.00029505,2]
[370302098,1751943038589,-421.39,0.0002952,2]
[370302099,1751943038599,-421.39,0.00029536,2]
[370302100,1751943038610,-421.39,0.00029551,2]
[370302101,1751943038620,-163.9,0.00029564,2]
[370302102,1751943038630,-421.39,0.00029566,2]
[370302103,1751943038639,-421.39,0.00029582,2]
[370302104,1751943038649,-421.39,0.00029597,2]
[370302105,1751943038659,-421.39,0.00029613,2]
[370302106,1751943038669,-421.39,0.00029628,2]
[370302107,1751943038680,-421.39,0.00029644,2]
[370302108,1751943038690,-421.39,0.00029659,2]
[370302109,1751943038703,-421.39,0.00029675,2]
[370302111,1751943038713,-300.0,0.00029707,2]
[370302113,1751943038722,-1171.89640479,0.00029707,2]
[370302115,1751943038731,-160.0,0.00029707,2]
[370302116,1751943038740,-207.4,0.00029707,2]
[370302117,1751943038751,-500.0,0.00029707,2]
[370302118,1751943038761,-500.0,0.00029707,2]
[370302119,1751943038770,-500.0,0.00029707,2]
[370302120,1751943038783,-500.0,0.00029707,2]
[370302121,1751943038792,-500.0,0.00029707,2]
[370302122,1751943038803,-500.0,0.00029707,2]
[370302123,1751943038813,-500.0,0.00029707,2]
[370302124,1751943038822,-500.0,0.00029707,2]
[370302125,1751943038832,-500.0,0.00029707,2]
[370302126,1751943038841,-500.0,0.00029707,2]
[370302127,1751943038852,-500.0,0.00029707,2]
[370302128,1751943038862,-500.0,0.00029707,2]
[370302129,1751943038872,-500.0,0.00029707,2]
[370302130,1751943038882,-500.0,0.00029707,2]
[370302131,1751943038891,-1104.15743549,0.00030026,2]
[370302132,1751943039184,-3.74830151,0.00030026,2]
[370302133,1751943039194,-1001.45878182,0.00030036,2]
[370302134,1751943039206,-1356.55,0.00030036,2]
[370302135,1751943039240,-1010.70537552,0.00030036,2]
[370302136,1751943039294,-792.3496034,0.00030036,2]
[370302137,1751943039306,-353.05907658,0.00030036,2]
[370302138,1751943039459,-485.87716268,0.00030036,2]
[370302140,1751943039468,-621.9347,0.00030036,2]
[370302142,1751943039477,-892.18813732,0.00030036,2]
[370302144,1751943039488,-2176.86873938,0.00030036,2]
[370302146,1751943039499,-1404.98903124,0.00030036,2]
[370302152,1751943039543,-505.05,0.00030036,2]
[370302154,1751943039555,-1809.31959206,0.00030036,2]
[370302156,1751943039564,-336.13405391,0.00030036,2]
[370302158,1751943039573,-709.68844375,0.00030036,2]
[370302159,1751943039588,-762.91971908,0.00030036,2]
[370302160,1751943039597,-172.6312476,0.00030036,2]
[370302161,1751943039606,-167.11312358,0.00030036,15]
[370302162,1751943039615,-150.59,0.00030068,2]
[370302163,1751943039625,-39310.1588131,0.00030126,2]
[370302164,1751943039634,-186.09,0.00030126,2]
[370302165,1751943039643,-562.79,0.00030126,2]
[370302166,1751943039652,-500.0,0.00030135,2]
[370302167,1751943039662,-500.0,0.00030135,2]
[370302168,1751943039671,-500.0,0.00030135,2]
[370302169,1751943039681,-500.0,0.00030135,2]
[370302171,1751943039690,-319.50159415,0.00030135,2]
[370302173,1751943039700,-500.0,0.00030135,2]
[370302174,1751943039709,-174.28091753,0.00030135,2]
[370302176,1751943039719,-500.0,0.00030135,2]
[370302177,1751943039728,-500.0,0.00030135,2]
[370302179,1751943039737,-500.0,0.00030135,2]
[370302181,1751943039747,-500.0,0.00030135,2]
[370302183,1751943039756,-500.0,0.00030135,2]
[370302184,1751943039766,-257.48622842,0.00030135,2]
[370302186,1751943039777,-372.44504897,0.00030135,2]
[370302188,1751943039787,-500.0,0.00030135,2]
[370302190,1751943039796,-500.0,0.00030135,2]
[370302191,1751943039805,-500.0,0.00030135,2]
[370302193,1751943039815,-500.0,0.00030135,2]
[370302195,1751943039823,-500.0,0.00030135,2]
[370302197,1751943039833,-500.0,0.00030135,2]
[370302198,1751943039842,-500.0,0.00030135,2]
[370302200,1751943039851,-500.0,0.00030135,2]
[370302202,1751943039860,-315.46673402,0.00030135,2]
[370302204,1751943039869,-502.73696901,0.00030135,2]
[370302205,1751943039878,-158.59467127,0.00030135,2]
[370302207,1751943039887,-490.0,0.00030136,7]
[370302209,1751943039897,-492.83917476,0.00030136,7]
[370302210,1751943039906,-492.60302465,0.00030136,7]
[370302212,1751943039915,-460.0,0.00030136,7]
[370302214,1751943039924,-460.0,0.00030136,7]
[370302216,1751943039934,-349.75191072,0.00030136,7]
[370302217,1751943039943,-491.86105923,0.00030136,7]
[370302219,1751943039952,-490.76119554,0.00030136,7]
[370302221,1751943039961,-527.01335157,0.00030136,7]
[370302223,1751943039970,-490.0,0.00030136,7]
[370302224,1751943039979,-492.59191962,0.00030136,7]
[370302226,1751943039988,-490.0,0.00030136,7]
[370302228,1751943039998,-491.23277165,0.00030136,7]
[370302230,1751943040008,-494.43651468,0.00030136,7]
[370302231,1751943040018,-491.76901893,0.00030136,7]
[370302233,1751943040027,-491.9933258,0.00030136,7]
[370302235,1751943040036,-492.24423778,0.00030136,7]
[370302236,1751943040045,-460.0,0.00030136,7]
[370302238,1751943040055,-492.48911492,0.00030136,7]
[370302240,1751943040064,-492.09950746,0.00030136,7]
[370302242,1751943040074,-460.0,0.00030136,7]
[370302244,1751943040082,-460.0,0.00030136,7]
[370302245,1751943040092,-460.0,0.00030136,7]
[370302247,1751943040102,-490.50103102,0.00030136,7]
[370302249,1751943040111,-492.25979645,0.00030136,7]
[370302251,1751943040121,-491.89740842,0.00030136,7]
[370302252,1751943040132,-460.0,0.00030136,7]
[370302254,1751943040141,-491.76492021,0.00030136,7]
[370302256,1751943040151,-493.74037979,0.00030136,7]
[370302258,1751943040160,-491.56300209,0.00030136,7]
[370302261,1751943040169,-491.51515787,0.00030136,7]
[370302263,1751943040178,-464.89053734,0.00030136,7]
[370302264,1751943040188,-460.0,0.00030136,7]
[370302266,1751943040197,-460.0,0.00030136,7]
[370302268,1751943040206,-491.73263215,0.00030136,7]
[370302270,1751943040215,-491.57122375,0.00030136,7]
[370302271,1751943040224,-490.0,0.00030136,7]
[370302273,1751943040234,-491.86081706,0.00030136,7]
[370302275,1751943040243,-491.19717835,0.00030136,7]
[370302277,1751943040252,-492.94183246,0.00030136,7]
[370302279,1751943040262,-491.06044779,0.00030136,7]
[370302280,1751943040270,-460.0,0.00030136,7]
[370302282,1751943040280,-460.0,0.00030136,7]
[370302284,1751943040289,-491.58171887,0.00030136,7]
[370302286,1751943040298,-490.0,0.00030136,7]
[370302287,1751943040308,-490.45743713,0.00030136,7]
[370302289,1751943040318,-491.63569876,0.00030136,7]
[370302291,1751943040329,-490.89262909,0.00030136,7]
[370302293,1751943040337,-491.28296902,0.00030136,7]
[370302295,1751943040346,-491.96598481,0.00030136,7]
[370302297,1751943040356,-492.49846551,0.00030136,7]
[370302299,1751943040365,-490.94598847,0.00030136,7]
[370302301,1751943040374,-493.09561543,0.00030136,7]
[370302302,1751943040383,-491.1306261,0.00030136,7]
[370302304,1751943040393,-491.41403277,0.00030136,7]
[370302306,1751943040402,-490.0,0.00030136,7]
[370302308,1751943040411,-490.0,0.00030136,7]
[370302309,1751943040420,-585.63203988,0.00030136,7]
[370302311,1751943040430,-490.0,0.00030136,7]
[370302313,1751943040439,-491.46808361,0.00030136,7]
[370302315,1751943040448,-490.77740325,0.00030136,7]
[370302317,1751943040457,-503.38052687,0.00030136,7]
[370302319,1751943040466,-491.54693649,0.00030136,7]
[370302321,1751943040475,-492.34326587,0.00030136,7]
[370302322,1751943040484,-491.01984688,0.00030136,7]
[370302324,1751943040494,-490.93396155,0.00030136,7]
[370302326,1751943040502,-492.00999234,0.00030136,7]
[370302328,1751943040511,-460.0,0.00030136,7]
[370302330,1751943040521,-491.31871687,0.00030136,7]
[370302331,1751943040530,-460.0,0.00030136,7]
[370302333,1751943040540,-490.0,0.00030136,7]
[370302335,1751943040549,-491.29567725,0.00030136,7]
[370302337,1751943040558,-491.05610281,0.00030136,7]
[370302339,1751943040567,-460.0,0.00030136,7]
[370302341,1751943040576,-491.17727557,0.00030136,7]
[370302343,1751943040585,-492.0331209,0.00030136,7]
[370302344,1751943040594,-491.59599872,0.00030136,7]
[370302346,1751943040603,-460.0,0.00030136,7]
[370302348,1751943040611,-460.0,0.00030136,7]
[370302349,1751943040622,-460.0,0.00030136,7]
[370302351,1751943040631,-460.0,0.00030136,7]
[370302353,1751943040639,-493.62069893,0.00030136,7]
[370302355,1751943040649,-491.38577808,0.00030136,7]
[370302357,1751943040658,-491.90318669,0.00030136,7]
[370302359,1751943040667,-491.36059664,0.00030136,7]
[370302361,1751943040678,-460.0,0.00030136,7]
[370302363,1751943040687,-491.07498633,0.00030136,7]
[370302365,1751943040696,-490.38332759,0.00030136,7]
[370302367,1751943040706,-356.36067423,0.00030136,7]
[370302369,1751943040714,-491.68251342,0.00030136,7]
[370302371,1751943040724,-490.71243401,0.00030136,7]
[370302372,1751943040733,-491.75864512,0.00030136,7]
[370302374,1751943040742,-272.81,0.00030136,7]
[370302376,1751943040751,-460.0,0.00030136,7]
[370302378,1751943040760,-490.90965748,0.00030136,7]
[370302380,1751943040769,-491.05813508,0.00030136,7]
[370302381,1751943040780,-460.0,0.00030136,7]
[370302383,1751943040789,-490.77474497,0.00030136,7]
[370302385,1751943040799,-491.30965839,0.00030136,7]
[370302387,1751943040808,-460.0,0.00030136,7]
[370302389,1751943040817,-490.69628231,0.00030136,7]
[370302390,1751943040826,-491.41696547,0.00030136,7]
[370302392,1751943040835,-311.8,0.00030136,7]
[370302394,1751943040845,-490.8330923,0.00030136,7]
[370302396,1751943040854,-497.53291555,0.00030136,7]
[370302398,1751943040863,-468.65296218,0.00030136,7]
[370302400,1751943040872,-499.8057887,0.00030136,7]
[370302401,1751943040882,-539.15,0.00030136,7]
[370302403,1751943040891,-490.39956251,0.00030136,7]
[370302405,1751943040902,-500.10895292,0.00030136,7]
[370302407,1751943040911,-491.07943069,0.00030136,7]
[370302409,1751943040921,-492.20037008,0.00030136,7]
[370302411,1751943040931,-490.0,0.00030136,7]
[370302412,1751943040940,-460.0,0.00030136,7]
[370302414,1751943040949,-490.7754598,0.00030136,7]
[370302416,1751943040958,-495.65876275,0.00030136,7]
[370302418,1751943040967,-490.62347031,0.00030136,7]
[370302420,1751943040976,-460.0,0.00030136,7]
[370302422,1751943040985,-496.95746445,0.00030136,7]
[370302423,1751943040994,-490.0,0.00030136,7]
[370302425,1751943041004,-493.61925879,0.00030136,7]
[370302427,1751943041014,-491.87933337,0.00030136,7]
[370302429,1751943041024,-330.40345073,0.00030136,7]
[370302431,1751943041033,-491.61004176,0.00030136,7]
[370302433,1751943041042,-460.0,0.00030136,7]
[370302435,1751943041052,-494.50039251,0.00030136,7]
[370302436,1751943041061,-487.54288567,0.00030136,7]
[370302438,1751943041071,-460.0,0.00030136,7]
[370302440,1751943041080,-460.0,0.00030136,7]
[370302442,1751943041090,-494.140915,0.00030136,7]
[370302444,1751943041099,-253.10315707,0.00030136,7]
[370302446,1751943041110,-494.41113965,0.00030136,7]
[370302447,1751943041119,-480.65946715,0.00030136,7]
[370302449,1751943041130,-494.02386628,0.00030136,7]
[370302451,1751943041140,-547.40683015,0.00030136,7]
[370302453,1751943041152,-365.60591537,0.00030136,7]
[370302455,1751943041162,-499.35132293,0.00030136,7]
[370302457,1751943041172,-492.42808505,0.00030136,7]
[370302459,1751943041186,-460.0,0.00030136,7]
[370302461,1751943041195,-460.0,0.00030136,7]
[370302463,1751943041205,-460.0,0.00030136,7]
[370302464,1751943041215,-490.0,0.00030136,7]
[370302466,1751943041224,-502.1135804,0.00030136,7]
[370302468,1751943041234,-460.0,0.00030136,7]
[370302470,1751943041244,-460.0,0.00030136,7]
[370302478,1751943041484,-492.74148464,0.00030136,7]
[370302479,1751943041501,-494.19801834,0.00030136,7]
[370302480,1751943041512,-496.24564979,0.00030136,7]
[370302481,1751943041521,-460.0,0.00030136,7]
[370302483,1751943041531,-492.99072025,0.00030136,7]
[370302484,1751943041540,-491.97728352,0.00030136,7]
[370302486,1751943041550,-493.90582671,0.00030136,7]
[370302488,1751943041559,-460.0,0.00030136,7]
[370302490,1751943041569,-491.52294855,0.00030136,7]
[370302492,1751943041580,-389.90706542,0.00030136,7]
[370302494,1751943041590,-491.76325885,0.00030136,7]
[370302496,1751943041599,-496.07091935,0.00030136,7]
[370302498,1751943041609,-537.03859293,0.00030136,7]
[370302500,1751943041619,-500.0,0.00030136,7]
[370302502,1751943041629,-493.14256494,0.00030136,7]
[370302504,1751943041638,-494.23754531,0.00030136,7]
[370302506,1751943041648,-490.0,0.00030136,7]
[370302508,1751943041657,-460.0,0.00030136,7]
[370302510,1751943041667,-460.0,0.00030136,7]
[370302512,1751943041676,-490.0,0.00030136,7]
[370302514,1751943041686,-491.33951786,0.00030136,7]
[370302516,1751943041695,-460.0,0.00030136,7]
[370302518,1751943041705,-460.0,0.00030136,7]
[370302520,1751943041715,-460.0,0.00030136,7]
[370302522,1751943041725,-490.0,0.00030136,7]
[370302524,1751943041734,-460.0,0.00030136,7]
[370302526,1751943041743,-460.0,0.00030136,7]
[370302528,1751943041753,-460.0,0.00030136,7]
[370302530,1751943041762,-460.0,0.00030136,7]
[370302532,1751943041772,-460.0,0.00030136,7]
[370302534,1751943041786,-460.0,0.00030136,7]
[370302536,1751943041796,-492.59336962,0.00030136,7]
[370302538,1751943041806,-460.0,0.00030136,7]
[370302541,1751943041817,-500.0,0.00030136,7]
[370302543,1751943041826,-460.0,0.00030136,7]
[370302545,1751943041836,-492.71486244,0.00030136,7]
[370302547,1751943041845,-460.0,0.00030136,7]
[370302549,1751943041855,-460.0,0.00030136,7]
[370302551,1751943041864,-490.0,0.00030136,7]
[370302553,1751943041873,-460.0,0.00030136,7]
[370302555,1751943041883,-491.00299534,0.00030136,7]
[370302557,1751943041892,-490.0,0.00030136,7]
[370302559,1751943041903,-460.0,0.00030136,7]
[370302561,1751943041912,-460.0,0.00030136,7]
[370302563,1751943041921,-460.0,0.00030136,7]
[370302565,1751943041930,-490.0,0.00030136,7]
[370302567,1751943041944,-460.0,0.00030136,7]
[370302568,1751943041953,-460.0,0.00030136,7]
[370302570,1751943041963,-460.0,0.00030136,7]
[370302572,1751943041973,-490.0,0.00030136,7]
[370302575,1751943041982,-490.0,0.00030136,7]
[370302577,1751943041992,-492.6825369,0.00030136,7]
[370302578,1751943042001,-460.0,0.00030136,7]
[370302580,1751943042012,-460.0,0.00030136,7]
[370302582,1751943042021,-492.61875884,0.00030136,7]
[370302584,1751943042031,-493.41026109,0.00030136,7]
[370302586,1751943042041,-460.0,0.00030136,7]
[370302588,1751943042050,-629.54,0.00030136,7]
[370302590,1751943042060,-460.0,0.00030136,7]
[370302592,1751943042070,-490.0,0.00030136,7]
[370302595,1751943042080,-460.0,0.00030136,7]
[370302597,1751943042089,-460.0,0.00030136,7]
[370302599,1751943042099,-460.0,0.00030136,7]
[370302600,1751943042108,-491.76770032,0.00030136,7]
[370302602,1751943042117,-520.0,0.00030136,7]
[370302604,1751943042127,-460.0,0.00030136,7]
[370302606,1751943042137,-460.0,0.00030136,7]
[370302608,1751943042147,-460.0,0.00030136,7]
[370302610,1751943042157,-460.0,0.00030136,7]
[370302612,1751943042166,-492.53489884,0.00030136,7]
[370302614,1751943042176,-527.61941708,0.00030136,7]
[370302616,1751943042185,-520.0,0.00030136,7]
[370302618,1751943042195,-460.0,0.00030136,7]
[370302620,1751943042204,-460.0,0.00030136,7]
[370302622,1751943042214,-460.0,0.00030136,7]
[370302624,1751943042223,-490.97535314,0.00030136,7]
[370302626,1751943042232,-698.01,0.00030136,7]
[370302629,1751943042245,-460.0,0.00030136,7]
[370302631,1751943042255,-460.0,0.00030136,7]
[370302633,1751943042265,-490.0,0.00030136,7]
[370302635,1751943042274,-551.81,0.00030136,7]
[370302637,1751943042286,-520.0,0.00030136,7]
[370302639,1751943042300,-491.76852491,0.00030136,7]
[370302641,1751943042309,-460.0,0.00030136,7]
[370302643,1751943042318,-460.0,0.00030136,7]
[370302645,1751943042327,-490.0,0.00030136,7]
[370302646,1751943042337,-494.6022548,0.00030136,7]
[370302648,1751943042346,-460.0,0.00030136,7]
[370302650,1751943042356,-460.0,0.00030136,7]
[370302652,1751943042365,-460.0,0.00030136,7]
[370302654,1751943042374,-460.0,0.00030136,7]
[370302656,1751943042383,-460.0,0.00030136,7]
[370302658,1751943042392,-491.39136545,0.00030136,7]
[370302660,1751943042403,-460.0,0.00030136,7]
[370302662,1751943042412,-495.2288137,0.00030136,7]
[370302664,1751943042422,-460.0,0.00030136,7]
[370302666,1751943042431,-460.0,0.00030136,7]
[370302668,1751943042441,-491.27973955,0.00030136,7]
[370302670,1751943042451,-460.0,0.00030136,7]
[370302672,1751943042460,-460.0,0.00030136,7]
[370302674,1751943042470,-460.0,0.00030136,7]
[370302676,1751943042479,-492.09513321,0.00030136,7]
[370302678,1751943042489,-460.0,0.00030136,7]
[370302680,1751943042498,-460.0,0.00030136,7]
[370302683,1751943042508,-490.0,0.00030136,7]
[370302685,1751943042517,-460.0,0.00030136,7]
[370302687,1751943042527,-556.21179398,0.00030136,7]
[370302689,1751943042536,-495.76068334,0.00030136,7]
[370302691,1751943042545,-490.0,0.00030136,7]
[370302693,1751943042554,-460.0,0.00030136,7]
[370302695,1751943042563,-460.0,0.00030136,7]
[370302697,1751943042572,-490.0,0.00030136,7]
[370302698,1751943042582,-460.0,0.00030136,7]
[370302701,1751943042592,-460.0,0.00030136,7]
[370302702,1751943042601,-490.0,0.00030136,7]
[370302705,1751943042611,-460.0,0.00030136,7]
[370302706,1751943042620,-496.57170587,0.00030136,7]
[370302709,1751943042630,-460.0,0.00030136,7]
[370302711,1751943042640,-460.0,0.00030136,7]
[370302712,1751943042651,-490.0,0.00030136,7]
[370302714,1751943042660,-491.73244887,0.00030136,7]
[370302716,1751943042670,-460.0,0.00030136,7]
[370302718,1751943042679,-492.3880165,0.00030136,7]
[370302720,1751943042688,-747.51,0.00030136,7]
[370302722,1751943042697,-541.96,0.00030136,7]
[370302724,1751943042706,-727.82,0.00030136,7]
[370302726,1751943042715,-495.57179707,0.00030136,7]
[370302728,1751943042725,-460.0,0.00030136,7]